Cogmind - Beta 17 @@@ ROGUE MODE // 2026.07.13 @ 14:51:09 Player: Thesoulkiller104 Result: Destroyed by 2X-W58(R) with Subdweller Machine Gun Performance ------------- Evolutions (0) 0 Regions Visited (2) 400 Robots Destroyed (17) 85 Value Destroyed (476) 476 Prototype IDs (15) 300 Alien Tech Used (0) 0 Bonus (0) 0 TOTAL SCORE: 1261 Bonus ------- None Cogmind --------- Core Integrity 0/250 Matter 243/300 Energy 180/180 System Corruption 0% Temperature Cool (0) Movement Rolling (95) Ox1 Location -10/Subcaves Parts ------- > --- POWER (1) -------- Meta Core > --- PROPULSION (2+1) - Wheel > --- UTILITY (2+1) ---- Small Storage Unit Improved Terrain Scanner Makeshift Light Armor Plating (+) > --- WEAPON (2) ------- Light Assault Rifle Battle Cannon > --- INVENTORY (8) ---- Ion Engine Subdweller Power Source Light Nuclear Core Subdweller Monowheel Subdweller Monowheel Seismic Detector Light Assault Rifle Multitool Peak State ------------ > --- POWER ------------ Meta Core > --- PROPULSION ------- Wheel Compact Wheel > --- UTILITY ---------- Small Storage Unit Seismic Detector Makeshift Light Armor Plating > --- WEAPON ----------- Subdweller Beam Cannon Light Cannon Battle Cannon > --- INVENTORY -------- Ion Engine Subdweller Power Source Light Nuclear Core Subdweller Monowheel Subdweller Monowheel Improved Terrain Scanner Multitool [Rating: 27] Favorites ----------- Power Ion Engine Engine Ion Engine Power Core Meta Core Propulsion Light Treads Treads Light Treads Wheel Wheel Utility Small Storage Unit Device Seismic Detector Storage Small Storage Unit Protection Makeshift Light Armor Plating Weapon Light Assault Rifle Energy Cannon Subdweller Beam Cannon Ballistic Gun Light Assault Rifle Ballistic Cannon Light Cannon Build | -11 -10 -10 ------- Run | Yrd Mat Sub Slots Evolved . | . . . Power . | . . . Propulsion . | . . . Utility . | . . . Weapon . | . . . Parts Attached 25 | 7 . 18 Power 6 | 1 . 5 Engine 4 | 1 . 3 Core 2 | . . 2 Reactor . | . . . Propulsion 6 | 2 . 4 Treads 2 | 2 . . Leg . | . . . Wheel 4 | . . 4 Hover . | . . . Flight . | . . . Utility 5 | 2 . 3 Device 3 | 1 . 2 Storage 1 | 1 . . Processor . | . . . Hackware . | . . . Protection 1 | . . 1 Artifact . | . . . Weapon 8 | 2 . 6 Energy Gun . | . . . Energy Cannon 1 | . . 1 Ballistic Gun 5 | 2 . 3 Ballistic Cannon 2 | . . 2 Launcher . | . . . Special Weapon . | . . . Impact Weapon . | . . . Slashing Weapon . | . . . Piercing Weapon . | . . . Special Melee Weapon . | . . . Unidentified Prototypes 1 | . . 1 Parts Lost 7 | . . 7 Power 1 | . . 1 Propulsion 1 | . . 1 Utility . | . . . Weapon 5 | . . 5 Highest Loss Streak 3 | . . 3 To Critical Strikes . | . . . Average Backups 6 | 2 4 7 Power 1 | . 1 1 Propulsion 2 | 1 2 2 Utility 1 | . 1 1 Weapon . | . . . Tool/Special . | . . . Unused Backups 2 | . . 2 Power . | . . . Propulsion . | . . . Utility . | . . . Weapon 1 | . . 1 Tool/Special 1 | . . 1 Average Slot Usage (%) 96 | . 99 96 Engine 9 | . 14 8 Core 4 | . . 4 Treads 12 | . 28 9 Wheel 14 | . . 17 Device 12 | . 13 12 Storage 13 | . 14 13 Protection 1 | . . 2 Ballistic Gun 13 | . 28 10 Ballistic Cannon 13 | . . 15 Peak Build Rating 27 | 7 7 27 Average Rating 11 | 5 6 12 On Entrance 4 | . 7 7 Avg Prop Armor Cover (%) 4 | . . 4 Naked Turns . | . . . Heaviest Build 30 | 13 13 30 Greatest Support 40 | 40 40 40 Greatest Overweight (x) 1 | . . 1 Average Overweight (x) . | . . . Largest Inventory Capacity 8 | 8 8 8 Average Capacity 7 | 6 8 8 Most Carried 8 | 3 7 8 Average Carried 6 | 2 4 7 Final Capacity 8 | 8 8 8 Final Carried 8 | 3 7 8 Class Distribution -------------------- 89% | Mutant 5% | Scavenger-Mutant 5% | Tank Dominant Class ---------------- Mutant | -10/Materials Mutant | -10/Subcaves Resources | -11 -10 -10 ----------- Run | Yrd Mat Sub Matter Collected 762 | 282 32 448 Remotely . | . . . Salvage Created 554 | 111 138 305 Parts 34 | 6 6 22 Haulers Intercepted . | . . . Recyclers Shooed . | . . . Parts Field Recycled . | . . . Retrieved Matter . | . . . Parts Self-Destructed 14 | . . 14 Prevented . | . . . Parts Restored . | . . . Kills | -11 -10 -10 ------- Run | Yrd Mat Sub Combat Hostiles Destroyed 15 | . 4 11 Guns 4 | . 4 . Cannons 11 | . . 11 Classes Destroyed 5 | 2 2 1 Tunneler 1 | 1 . . Recycler 1 | 1 . . Swarmer 4 | . 1 3 Grunt 5 | . 3 2 Subdweller 6 | . . 6 Best Kill Streak 3 | 2 2 3 Combat Bots Only 3 | . 2 3 Max Kills in Single Turn 1 | 1 1 1 Gunslinging . | . . . Exploded . | . . . Melee . | . . . Uniques/NPCs Destroyed . | . . . Combat | -11 -10 -10 -------- Run | Yrd Mat Sub Hostile Shots Fired 109 | . 32 77 Missed 22 | . 7 15 Hits 87 | . 25 62 Projectile 87 | . 25 62 Critical Strikes 3 | . 1 2 Damage Taken 1332 | . 254 1078 Core 258 | . 54 204 Absorbed by Shields . | . . . Core Remaining (%) 100 | 100 . . Volleys Fired 69 | 6 17 46 Largest 3 | 2 2 3 Hottest 143 | 40 40 143 Shots Fired 137 | 12 34 91 Gun 86 | 12 34 40 Cannon 51 | . . 51 Launcher . | . . . Special . | . . . Kinetic 136 | 12 34 90 Thermal 1 | . . 1 Explosive . | . . . Electromagnetic . | . . . Robot Hit Streak 22 | 2 5 22 Robot Miss Streak 4 | 1 2 4 Penetration Max . | . . . Secondary Targets . | . . . Shots Hit Robots 96 | 7 23 66 Core Hits 30 | 3 7 20 Critical Kills . | . . . Critical Parts Destroyed 1 | . 1 . Critical Strikes 5 | . 1 4 Destroy 1 | . 1 . Blast 4 | . . 4 Melee Attacks . | . . . Impact . | . . . Slashing . | . . . Piercing . | . . . Sneak Attacks . | . . . Combat Hostiles . | . . . Follow-up Attacks . | . . . Damage Inflicted 1161 | 57 180 924 Guns 565 | 57 180 328 Cannons 596 | . . 596 Explosions . | . . . Melee . | . . . Ramming . | . . . Kinetic 1161 | 57 180 924 Thermal . | . . . Explosive . | . . . Electromagnetic . | . . . Impact . | . . . Slashing . | . . . Piercing . | . . . Highest Corruption . | . . . Average Corruption . | . . . Corruption Purged . | . . . Corruption Blocked . | . . . Overload Shots . | . . . Overflow Damage 7 | . . 7 Projectiles 7 | . . 7 Explosions . | . . . Melee . | . . . Knockbacks 10 | . . 10 Impact . | . . . Kinetic 10 | . . 10 Secondary . | . . . Self-Inflicted Damage . | . . . Shots . | . . . Rammed . | . . . Targets Rammed . | . . . Kicked . | . . . Crushed . | . . . Highest Temperature 36 | . 12 36 Average Temperature 11 | . 7 20 Received Heat Transfer 255 | . 90 165 Siege Activations . | . . . Martial Activations . | . . . Shielding Activations . | . . . Robots Disrupted . | . . . Combat Hostiles . | . . . Robots Corrupted . | . . . Combat Hostiles . | . . . Parts Fried . | . . . Impact Corruptions . | . . . Robots Melted . | . . . Combat Hostiles . | . . . Parts Melted . | . . . Heat Transferred . | . . . Parts Sabotaged . | . . . Parts Stolen . | . . . Parts Stripped . | . . . Power Chain Reactions . | . . . Alert | -11 -10 -10 ------- Run | Yrd Mat Sub Maximum Alert Level . | . . . Low Security (%) 100 | 100 100 . Level 1 . | . . . Level 2 . | . . . Level 3 . | . . . Level 4 . | . . . Level 5 . | . . . High Security . | . . . Max Security . | . . . Peak Influence 70 | 5 70 . Initial . | . . . Average 14 | . 19 . Influence Increases 265 | 10 135 120 Destroy 0b10 Robot/C 180 | . 80 100 Destroy 0b10 Robot/NC 10 | 10 . . Destroy Leader 30 | . 10 20 Lose Combat Pursuer 45 | . 45 . Influence Decreases 254 | 10 100 144 Entered New Map 18 | . . 18 Time Decay 216 | 10 100 106 Lost Part 20 | . . 20 Squads Dispatched 1 | . 1 . Investigation 1 | . 1 . Extermination . | . . . Reinforcement . | . . . Assault . | . . . Garrison . | . . . Intercept . | . . . Searches Triggered . | . . . Construction Impeded . | . . . Haulers Reinforced . | . . . Active Scanning Responses . | . . . Cargo Convoy Interrupts . | . . . Stealth | -11 -10 -10 --------- Run | Yrd Mat Sub Distress Signals . | . . . Communications Jammed . | . . . Distress Signals . | . . . Times Spotted 21 | . 8 13 Peak Tracking Total 3 | . 3 3 Tactical Retreats 3 | . 2 1 Traps | -11 -10 -10 ------- Run | Yrd Mat Sub Traps Triggered . | . . . Indirectly . | . . . Trap Hack Attempts . | . . . Triggered . | . . . Disarmed . | . . . Reprogrammed . | . . . Reused . | . . . Traps Extracted . | . . . Installed . | . . . Triggered . | . . . Machines | -11 -10 -10 ---------- Run | Yrd Mat Sub Machines Disabled 1 | . . 1 Max in Single Turn 1 | . . 1 Machines Repaired . | . . . Machines Dismantled . | . . . Machines Sabotaged . | . . . Overloaded Fab Kills . | . . . Hacking | -11 -10 -10 --------- Run | Yrd Mat Sub Machines Accessed 6 | . 4 2 Terminals 3 | . 3 . Fabricators . | . . . Repair Stations 1 | . 1 . Recycling Units . | . . . Scanalyzers . | . . . Garrison Access . | . . . Total Hacks 10 | . 8 2 Successful 2 | . . 2 Failed 8 | . 8 . Catastrophic 1 | . 1 . Database Lockouts . | . . . Manual 5 | . 5 . Terminals 5 | . 5 . Fabricators . | . . . Repair Stations 3 | . 3 . Recycling Units . | . . . Scanalyzers . | . . . Garrison Access . | . . . Terminal Hacks 2 | . . 2 Open Door 1 | . . 1 Proto ID Catalog 1 | . . 1 Fabricator Hacks . | . . . Repair Station Hacks . | . . . Recycling Unit Hacks . | . . . Scanalyzer . | . . . Garrison Access Hacks . | . . . Unauthorized Hacks . | . . . Terminals . | . . . Fabricators . | . . . Repair Stations . | . . . Recycling Units . | . . . Scanalyzers . | . . . Garrison Access . | . . . Data Cores Recovered . | . . . Used . | . . . Hacking Detections 4 | . 4 . Full Trace Events 1 | . 1 . Feedback Events . | . . . Feedback Blocked . | . . . Robot Schematics Acquired . | . . . Robots Built . | . . . Authchips . | . . . Time . | . . . Total Robot Build Rating . | . . . Part Schematics Acquired . | . . . Parts Built . | . . . Authchips . | . . . Time . | . . . Total Part Build Rating . | . . . Part Studies Acquired . | . . . Parts Repaired . | . . . Time . | . . . Parts Recycled . | . . . Recycled Matter . | . . . Retrieved Matter . | . . . Retrieved Components . | . . . Parts Scanalyzed . | . . . Part Schematics Acquired . | . . . Parts Damaged . | . . . Bothacking | -11 -10 -10 ------------ Run | Yrd Mat Sub Used RIF Installer . | . . . Robots Hacked . | . . . Non-combat . | . . . Combat . | . . . Robot Hacks Applied . | . . . Relay Couplers Released . | . . . Fabnet Peak Effective % . | . . . Robots Rewired . | . . . Allies Hacked . | . . . Hacks Repelled . | . . . Allies | -11 -10 -10 -------- Run | Yrd Mat Sub Total Allies . | . . . Largest Group . | . . . Highest-Rated Group . | . . . Highest-Rated Ally . | . . . Total Orders . | . . . Ally Attacks . | . . . Total Damage . | . . . Kills . | . . . Allies Corrupted . | . . . Allies Melted . | . . . Intel | -11 -10 -10 ------- Run | Yrd Mat Sub Active Infowar (turns) 2363 | 68 365 1930 Terrain 99 | . . 99 Seismic 2264 | 68 365 1831 Robot Analysis Total . | . . . Derelict Logs Recovered 2 | . . 2 Drone Launches . | . . . Drone Recoveries . | . . . Exploration | -11 -10 -10 ------------- Run | Yrd Mat Sub Turns Passed 2563 | 132 385 2046 Spaces Moved 1739 | 70 189 1480 Core 7 | 7 . . Treads 608 | 63 189 356 Legs . | . . . Wheels 1124 | . . 1124 Hover . | . . . Flight . | . . . Fastest Speed 50 | 50 160 90 Average Speed 116 | 149 160 109 Slowest Speed 160 | 160 160 160 Overloaded Moves . | . . . Propulsion Burnouts . | . . . Robots Hopped . | . . . Potential Cave-ins . | . . . Cave-ins Triggered . | . . . Exploration Rate (%) 34 | 4 44 55 Regions Visited 2 Branch Regions 1 Pre-discovered Areas 2 | . . 2 Known Exits Taken . | . . . Unknown Exits Taken 2 | 1 1 . Scrap Searched 11 | . . 11 Spaces Dug . | . . . Terrain Destroyed . | . . . Melee . | . . . Projectile . | . . . AOE . | . . . Terrain Rammed . | . . . Walls Destroyed . | . . . Machines Disabled . | . . . Actions | -11 -10 -10 --------- Run | Yrd Mat Sub Total 2154 | 85 246 1823 Wait 282 | . 33 249 Move 1737 | 69 188 1480 Hop . | . . . Pick Up 17 | 3 5 9 Fast Attach 12 | 7 . 5 Attach 15 | . 1 14 Detach 8 | . 1 7 Swap 7 | . . 7 Drop 7 | . 1 6 Fire 69 | 6 17 46 Melee . | . . . Ram . | . . . Kick . | . . . Crush . | . . . Escape Stasis . | . . . Rewire . | . . . Trap . | . . . Miscellaneous . | . . . Route ------- -11/Scrapyard -10/Materials (discovered 3 exits: [*Mat] / [*Min] / *Sub) -10/Subcaves (discovered 2 exits: *Mat x2) History --------- Turn | Location | Event 10 | -11/Scrapyard | Discovered new exit (range 15) 133 | -11/Scrapyard | Entered Materials 271 | -10/Materials | Discovered new exit (range 12) 332 | -10/Materials | Build established: Mutant 458 | -10/Materials | Discovered new exit (range 7) 504 | -10/Materials | Discovered new exit (range 9) 518 | -10/Materials | Entered Subcaves 520 | -10/Subcaves | Learned location of Storage (-9) 694 | -10/Subcaves | Ambushed by Subdwellers from Twisted Machinery 759 | -10/Subcaves | Lost 3 parts (1p2w) 909 | -10/Subcaves | Core integrity fell below 50% 1352 | -10/Subcaves | Discovered new exit (range 6) 1416 | -10/Subcaves | Learned location of Zion (-6) 1416 | -10/Subcaves | Met a Zionite searching for "candidates" 1913 | -10/Subcaves | Visited 4L-MR0's lab 1914 | -10/Subcaves | Identified exit to Materials 1920 | -10/Subcaves | Found Prototype Device 1920 | -10/Subcaves | Identified Sfc. Transmogrifier 1928 | -10/Subcaves | Found Meta Core 2028 | -10/Subcaves | Shifting Twisted Machinery released Scrap Shield 2148 | -10/Subcaves | Attached Meta Core, gained temporary slots: Propulsion, Utility, Weapon 2549 | -10/Subcaves | Core integrity fell below 20% 2564 | -10/Subcaves | Destroyed by 2X-W58(R) with Subdweller Machine Gun Last Messages --------------- 02293_ S-10 Pest destroyed. 02298_ Lgt. Cannon destroyed. 02299_ S-10 Pest Lgt. Assault Rifle blasted off. 02299_ S-10 Pest destroyed. 02302_ Acquired 6 matter. 02303_ Acquired 4 matter. 02304_ Flight Unit fries itself beyond repair. 02305_ Acquired Lgt. Assault Rifle. 02311_ Flight Unit fries itself beyond repair. 02312_ Acquired 3 matter. 02519_ Dropped Seismic Detector. 02521_ Acquired Seismic Detector. 02530_ WX-0ML(R) destroyed. 02533_ 2H-KRP(R) knocked back. 02536_ 2H-KRP(R) affixes Scrap Shield Fragment to Scrap Shield. 02537_ 2H-KRP(R) knocked back. 02542_ Com. Wheel destroyed. 02543_ 2H-KRP(R) suffers critical hit (Blast). 02543_ 2H-KRP(R) destroyed. 02554_ Acquired 39 matter. Map ----- +----------------------------------------------------+ | ??? ????????????????????????????????????? | | ##?????? ###?????????????????????????????????? | | ##???????# #?????????????????????????????????? | | #???????? #?????????????????????????????????? | | #???????? ##????????????????????????????????? | | ##????????? ###??????????????????????????????? | | #??###????? ???????????????????????????????? | | #?# ##????# ????????????????????????????????? | | ## ?????# #??????????#???#?????????????????? | | #""" #?????# "#????????????????????????????????? | | " "" #????## " ?????????????????#???????????????? | | " ""#?##### #??????####????????????????????????? | | """"## ###" #??##### ###??#???????????????????? | | #" #?#" #### ## #??????????????????????? | | ##"" #?#" ## " #??????????????????????? | | ## ""#??# ### " #??##??????????????????? | | #?#### ### " ##?## ##??#?????????????? | | ##?#" ## " ##??# ########????????? | | ##??##" "%" ##????# ##???????? | | ##????#" """R ####??# #???????? | | # #?????##" " " #### ## ?? | | # ########### "" ## """"????? | | "##??# " ## """"????? | | "#### " % [ ### # #???? | | ### "" " % =%!##?## ##### #???? | | ## # " " &!@##?### ##????? "??? | | ?## ###### # # " !%#### ##????? ?? " ?? | | ?# ##???######### & ## ##?#???????????? | | ## #???????????### ##??????????????? | | #?????????????## #???????????????? | | ##??????????????# ### ##???????????????? | | #####???????????????###?## ####????????????????? | | ?????????????????????????## ##???#???????????????? | | ??????????????????????????###????????????????????? | | ?????????????????????????????????????????????????? | | ?????????????????????????????????????????????????? | | ?????????????????????????????????????????????????? | | ?????????????????????????????????????????????????? | | ?????????????????????????????????????????????????? | | ?????????????????????????????????????????????????? | | ????????????????????????????#????????????????????? | | ?????????????????????????????????????????????????? | | ?????????????????????????????????????????????????? | | ?????????????????????????????????????????????????? | | ?????????????????????????????????????????????????? | | ?????????????????????????????????????????????????? | | ?????????????????????????????????????????????????? | | ?????????????????????????????????????????????????? | | | | | +----------------------------------------------------+ Best States ------------- Heat Dissipation 25 Energy Generation 17 Energy Capacity 250 Matter Stores 300 Matter Capacity 300 Sight Range 16 Terrain Scan Range 16 Terrain Scan Density 10 Armor Coverage 100 Evasion (%) 42 Recoil Reduction 2 Item Schematics ----------------- None Robot Schematics ------------------ None Fabricated ------------ Nothing Repaired ---------- Nothing Studied --------- None Alien Tech Used ----------------- None Achievements -------------- None Challenges ------------ None Game ------ Seed ImprovedThermalWand Manual? 0 Play Time 00:19:37 Cumulative 58.5 hours Start 2026.07.13 @ 14:33:56 End 2026.07.13 @ 14:51:09 Sessions 1 Manual Loads 0 Difficulty Rogue Special Mode None Game No. 73 Rogue 48 Adventurer 18 Explorer 7 Win Type - Total 1 Types 1/0/0/0/0/0/0/0/0/0 Lore% 20 Gallery% 32 Achievement% 30 Wizard Run 0 Options --------- Layout 1 ASCII 0 Keyboard 1 Movement Numpad Keybinds 0 Fullscreen 1 Font 32/SmallcapsGlow Map View 77x35 Zoom Use 22% Tactical HUD 1 Map Filters NONE Filters NONE Steam 1 RUN: de9e6eed-a99f-46d1-8d67-a0768658f7bb